bitfinex-derivatives/quotes_BTCF0:USTF0_20251220
["timestamp","ask_amount","ask_price","bid_price","bid_amount"]
[1766246835525,0.02522818,88214.0,88200.0,0.22867692]
[1766246835732,0.02522818,88213.0,88200.0,0.22867692]
[1766246835933,0.02522818,88212.0,88200.0,0.22867692]
[1766246836139,0.02522818,88211.0,88200.0,0.22867692]
[1766246836331,0.02522818,88210.0,88200.0,0.22867692]
[1766246836633,0.0113409,88216.0,88200.0,0.22867692]
[1766246836829,0.02522835,88215.0,88200.0,0.22867692]
[1766246837024,0.02522835,88214.0,88200.0,0.22867692]
[1766246837225,0.02522835,88213.0,88200.0,0.22867692]
[1766246837426,0.02522835,88212.0,88200.0,0.22867692]
[1766246837626,0.02522835,88211.0,88200.0,0.22867692]
[1766246837824,0.02522835,88210.0,88200.0,0.22867692]
[1766246838025,0.0113409,88216.0,88200.0,0.22867692]
[1766246838226,0.02522855,88215.0,88200.0,0.22867692]
[1766246838426,0.02522855,88214.0,88200.0,0.22867692]
[1766246838633,0.02522855,88213.0,88200.0,0.22867692]
[1766246838934,0.02522855,88212.0,88200.0,0.22867692]
[1766246839136,0.02522855,88211.0,88200.0,0.22867692]
[1766246839337,0.02522855,88210.0,88200.0,0.22867692]
[1766246839540,0.02522855,88209.0,88200.0,0.22867692]
[1766246839730,0.0113409,88216.0,88200.0,0.22867692]
[1766246840027,0.0252291,88215.0,88200.0,0.22867692]
[1766246840228,0.0252291,88214.0,88200.0,0.22867692]
[1766246840437,0.0252291,88213.0,88200.0,0.22867692]
[1766246840648,0.0252291,88212.0,88200.0,0.22867692]
[1766246840931,0.0252291,88211.0,88200.0,0.22867692]
[1766246841140,0.0252291,88210.0,88200.0,0.22867692]
[1766246841435,0.0113409,88216.0,88200.0,0.22867692]
[1766246841637,0.02508101,88215.0,88200.0,0.22867692]
[1766246841827,0.02508101,88214.0,88200.0,0.22867692]
[1766246842027,0.02508101,88213.0,88199.0,0.02836]
[1766246842227,0.02508101,88212.0,88200.0,0.22867692]
[1766246842535,0.02508101,88211.0,88200.0,0.22867692]
[1766246842732,0.02508101,88210.0,88200.0,0.22867692]
[1766246842931,0.0113409,88216.0,88200.0,0.22867692]
[1766246843134,0.02508149,88215.0,88200.0,0.22867692]
[1766246843435,0.02508149,88214.0,88200.0,0.22867692]
[1766246843634,0.02508149,88213.0,88200.0,0.22867692]
[1766246843839,0.02508149,88212.0,88200.0,0.22867692]
[1766246844027,0.02508149,88211.0,88200.0,0.22867692]
[1766246844227,0.02508149,88210.0,88200.0,0.22867692]
[1766246844427,0.02508149,88209.0,88200.0,0.22867692]
[1766246844629,0.0113409,88216.0,88200.0,0.22867692]
[1766246844937,0.0113412,88214.0,88199.0,0.02836]
[1766246845237,0.0250827,88213.0,88199.0,0.02836]
[1766246846541,0.0250827,88213.0,88200.0,0.22867692]
[1766246846842,0.0250827,88213.0,88199.0,0.02836]
[1766246847929,0.0250827,88212.0,88200.0,0.22867692]
[1766246848132,0.0250827,88211.0,88200.0,0.22867692]
[1766246848332,0.0250827,88210.0,88199.0,0.02836]
[1766246848535,0.0250827,88209.0,88200.0,0.22867692]
[1766246848843,0.0113409,88216.0,88200.0,0.22867692]
[1766246849139,0.02508675,88215.0,88200.0,0.22867692]
[1766246849339,0.02508675,88214.0,88200.0,0.22867692]
[1766246849528,0.02508675,88213.0,88200.0,0.22867692]
[1766246849731,0.02508675,88212.0,88200.0,0.22868568]
[1766246849930,0.02508675,88211.0,88200.0,0.22868568]
[1766246850131,0.02508675,88210.0,88200.0,0.22868568]
[1766246850335,0.02508675,88209.0,88200.0,0.22868568]
[1766246850538,0.02508675,88208.0,88200.0,0.22868568]
[1766246850737,0.0113411,88214.0,88200.0,0.22868568]
[1766246851037,0.02508846,88213.0,88200.0,0.22868568]
[1766246851240,0.02508846,88212.0,88200.0,0.22868568]
[1766246851545,0.02508846,88211.0,88200.0,0.22868568]
[1766246851741,0.02508846,88210.0,88200.0,0.22868568]
[1766246852045,0.02508846,88209.0,88200.0,0.22868568]
[1766246852239,0.02508846,88208.0,88199.0,0.02836]
[1766246852438,0.0397007,88218.0,88199.0,0.02836]
[1766246852638,0.02508842,88217.0,88199.0,0.02836]
[1766246852843,0.02508842,88216.0,88199.0,0.02836]
[1766246853141,0.02508842,88215.0,88199.0,0.02836]
[1766246853342,0.02508842,88214.0,88199.0,0.02836]
[1766246853545,0.02508842,88213.0,88199.0,0.02836]
[1766246853744,0.02508842,88212.0,88199.0,0.02836]
[1766246854045,0.02508842,88211.0,88199.0,0.02836]
[1766246854345,0.02508842,88210.0,88199.0,0.02836]
[1766246854534,0.02508842,88209.0,88199.0,0.02836]
[1766246854734,0.02508842,88208.0,88199.0,0.02836]
[1766246854944,0.0113409,88216.0,88199.0,0.02836]
[1766246855240,0.02508861,88215.0,88199.0,0.02836]
[1766246855440,0.02508861,88214.0,88199.0,0.02836]
[1766246855642,0.02508861,88213.0,88199.0,0.02836]
[1766246855842,0.02508861,88212.0,88199.0,0.02836]
[1766246856142,0.02508861,88211.0,88199.0,0.02836]
[1766246856344,0.02508861,88210.0,88199.0,0.02836]
[1766246856536,0.02508861,88209.0,88199.0,0.02836]
[1766246856736,0.02508861,88208.0,88199.0,0.02836]
[1766246856944,0.0113409,88216.0,88199.0,0.02836]
[1766246857146,0.02508884,88215.0,88199.0,0.02836]
[1766246857346,0.02508884,88214.0,88199.0,0.02836]
[1766246857546,0.02508884,88213.0,88199.0,0.02836]
[1766246857747,0.02508884,88212.0,88199.0,0.02836]
[1766246857946,0.02508884,88211.0,88199.0,0.02836]
[1766246858148,0.02508884,88210.0,88199.0,0.02836]
[1766246858350,0.02508884,88209.0,88199.0,0.02836]
[1766246858641,0.02508884,88208.0,88199.0,0.02836]
[1766246858847,0.02836,88218.0,88199.0,0.02836]
[1766246859045,0.0113398,88224.0,88208.0,0.22868568]
[1766246859632,0.0113403,88221.0,88208.0,0.22868568]
[1766246859838,0.0113403,88221.0,88201.0,0.02836]
[1766246860648,0.0113406,88218.0,88201.0,0.02836]
[1766246870856,0.0113409,88216.0,88201.0,0.02836]
[1766246871051,0.02496527,88215.0,88201.0,0.02836]
[1766246871351,0.02496527,88214.0,88201.0,0.02836]
[1766246871555,0.0113409,88216.0,88201.0,0.02836]
[1766246871752,0.02483216,88215.0,88201.0,0.02836]
[1766246872051,0.02483216,88214.0,88201.0,0.02836]
[1766246872251,0.0113409,88216.0,88201.0,0.02836]
[1766246872456,0.02483194,88215.0,88201.0,0.02836]
[1766246872757,0.02483194,88214.0,88201.0,0.02836]
[1766246872943,0.0113409,88216.0,88201.0,0.02836]
[1766246873145,0.02483194,88215.0,88201.0,0.02836]
[1766246873347,0.02483194,88214.0,88201.0,0.02836]
[1766246873556,0.0113409,88216.0,88201.0,0.02836]
[1766246873757,0.02483178,88215.0,88201.0,0.02836]
[1766246874057,0.02483178,88214.0,88201.0,0.02836]
[1766246874259,0.0113409,88216.0,88201.0,0.02836]
[1766246874445,0.02483169,88215.0,88201.0,0.02836]
[1766246874645,0.02483169,88214.0,88201.0,0.02836]
[1766246874860,0.0113409,88216.0,88201.0,0.02836]
[1766246875059,0.02483169,88215.0,88201.0,0.02836]
[1766246875357,0.02483169,88214.0,88201.0,0.02836]
[1766246875558,0.0113409,88216.0,88201.0,0.02836]
[1766246875761,0.02483174,88215.0,88201.0,0.02836]
[1766246875950,0.02483174,88214.0,88201.0,0.02836]
[1766246876151,0.0113409,88216.0,88201.0,0.02836]
[1766246876451,0.02483188,88215.0,88201.0,0.02836]
[1766246876651,0.02483188,88214.0,88201.0,0.02836]
[1766246876853,0.02483188,88213.0,88201.0,0.02836]
[1766246877160,0.0113409,88216.0,88201.0,0.02836]
[1766246877361,0.02483301,88215.0,88201.0,0.02836]
[1766246877662,0.02483301,88214.0,88201.0,0.02836]
[1766246877857,0.02483301,88213.0,88201.0,0.02836]
[1766246878058,0.0113409,88216.0,88201.0,0.02836]
[1766246878260,0.02483301,88215.0,88201.0,0.02836]
[1766246878458,0.02483301,88214.0,88201.0,0.02836]
[1766246878659,0.02483301,88213.0,88201.0,0.02836]
[1766246878861,0.0113409,88216.0,88201.0,0.02836]
[1766246879160,0.02483348,88215.0,88201.0,0.02836]
[1766246879360,0.02483348,88214.0,88201.0,0.02836]
[1766246879561,0.02483348,88213.0,88201.0,0.02836]
[1766246879751,0.0113409,88216.0,88201.0,0.02836]
[1766246879953,0.02483397,88215.0,88201.0,0.02836]
[1766246880153,0.02483397,88214.0,88201.0,0.02836]
[1766246880452,0.02483397,88213.0,88201.0,0.02836]
[1766246880647,0.0113409,88216.0,88201.0,0.02836]
[1766246880849,0.02483428,88215.0,88201.0,0.02836]
[1766246881059,0.02483428,88214.0,88201.0,0.02836]
[1766246881257,0.02483428,88213.0,88201.0,0.02836]
[1766246881464,0.0113409,88216.0,88201.0,0.02836]
[1766246881660,0.02483495,88215.0,88201.0,0.02836]
[1766246881859,0.02483495,88214.0,88201.0,0.02836]
[1766246882159,0.02483495,88213.0,88201.0,0.02836]
[1766246882358,0.0113409,88216.0,88201.0,0.02836]
[1766246882561,0.0248357,88215.0,88201.0,0.02836]
[1766246882861,0.0248357,88214.0,88201.0,0.02836]
[1766246883160,0.0248357,88213.0,88201.0,0.02836]
[1766246883358,0.0113409,88216.0,88201.0,0.02836]
[1766246883559,0.02483655,88215.0,88201.0,0.02836]
[1766246883761,0.02483655,88214.0,88201.0,0.02836]
[1766246883962,0.02483655,88213.0,88201.0,0.02836]
[1766246884268,0.0113409,88216.0,88201.0,0.02836]
[1766246884462,0.02483787,88215.0,88201.0,0.02836]
[1766246884667,0.02483787,88214.0,88201.0,0.02836]
[1766246884859,0.02483787,88213.0,88201.0,0.02836]
[1766246885172,0.02483896,88212.0,88201.0,0.02836]
[1766246885363,0.0113409,88216.0,88201.0,0.02836]
[1766246885557,0.02483917,88215.0,88201.0,0.02836]
[1766246885758,0.02483917,88214.0,88201.0,0.02836]
[1766246885966,0.02483917,88213.0,88201.0,0.02836]
[1766246886161,0.02483917,88212.0,88201.0,0.02836]
[1766246886367,0.0113409,88216.0,88201.0,0.02836]
[1766246886565,0.02484072,88215.0,88201.0,0.02836]
[1766246886760,0.02484072,88214.0,88201.0,0.0397028]
[1766246886966,0.02484072,88213.0,88201.0,0.0397028]
[1766246887166,0.02484072,88212.0,88201.0,0.0397028]
[1766246887366,0.0113404,88220.0,88201.0,0.0397028]
[1766246887566,0.02484271,88219.0,88201.0,0.0397028]
[1766246887767,0.02484271,88218.0,88201.0,0.0397028]
[1766246888067,0.02484271,88217.0,88201.0,0.0397028]
[1766246888270,0.02484271,88216.0,88201.0,0.0397028]
[1766246888470,0.02484271,88215.0,88201.0,0.0397028]
[1766246888770,0.0113404,88220.0,88201.0,0.0397028]
[1766246888771,0.02484271,88214.0,88201.0,0.0397028]
[1766246888972,0.02484271,88213.0,88201.0,0.0397028]
[1766246889172,0.0113404,88220.0,88201.0,0.0397028]
[1766246889367,0.02484541,88219.0,88201.0,0.0397028]
[1766246889571,0.02484541,88218.0,88201.0,0.0397028]
[1766246889772,0.03618621,88217.0,88201.0,0.02836]
[1766246889972,0.02484541,88216.0,88201.0,0.02836]
[1766246900688,0.02484541,88215.0,88201.0,0.02836]
[1766246900892,0.0113403,88221.0,88201.0,0.02836]
[1766246901191,0.02484565,88220.0,88201.0,0.02836]
[1766246901386,0.02484565,88219.0,88201.0,0.02836]
[1766246901586,0.02484565,88218.0,88201.0,0.02836]
[1766246901891,0.02484565,88217.0,88201.0,0.02836]
[1766246902090,0.02484565,88216.0,88201.0,0.02836]
[1766246902292,0.02484565,88215.0,88201.0,0.02836]
[1766246902491,0.0113405,88219.0,88201.0,0.02836]
[1766246902792,0.02489611,88218.0,88201.0,0.02836]
[1766246902995,0.02489611,88217.0,88201.0,0.02836]
[1766246903189,0.02489611,88216.0,88201.0,0.02836]
[1766246903492,0.02489611,88215.0,88201.0,0.02836]
[1766246903693,0.0113405,88219.0,88201.0,0.02836]
[1766246903894,0.0248961,88218.0,88201.0,0.02836]
[1766246904201,0.0248961,88217.0,88201.0,0.02836]
[1766246904490,0.0248961,88216.0,88201.0,0.02836]
[1766246904687,0.0248961,88215.0,88201.0,0.02836]
[1766246904897,0.0113405,88219.0,88201.0,0.02836]
[1766246905084,0.02489594,88218.0,88201.0,0.02836]
[1766246905285,0.02489594,88217.0,88201.0,0.02836]
[1766246905488,0.02489594,88216.0,88201.0,0.02836]
[1766246905693,0.02489594,88215.0,88201.0,0.02836]
[1766246905895,0.0113405,88219.0,88201.0,0.02836]
[1766246906088,0.02489588,88218.0,88201.0,0.02836]
[1766246906292,0.02489588,88217.0,88201.0,0.02836]
[1766246906594,0.02489588,88216.0,88201.0,0.02836]
[1766246906789,0.02489588,88215.0,88201.0,0.02836]
[1766246906995,0.0113405,88219.0,88201.0,0.02836]
[1766246907192,0.02489596,88218.0,88201.0,0.02836]
[1766246907394,0.02489596,88217.0,88201.0,0.02836]
[1766246907585,0.0113405,88219.0,88201.0,0.02836]
[1766246907586,0.02489596,88216.0,88201.0,0.02836]
[1766246907786,0.02489596,88215.0,88201.0,0.02836]
[1766246907995,0.0113405,88219.0,88201.0,0.02836]
[1766246908194,0.02489587,88218.0,88201.0,0.02836]
[1766246908391,0.02489587,88217.0,88201.0,0.02836]
[1766246908597,0.02489587,88216.0,88201.0,0.02836]
[1766246908896,0.02489587,88215.0,88201.0,0.02836]
[1766246909098,0.0113405,88219.0,88201.0,0.02836]
[1766246909287,0.02489616,88218.0,88201.0,0.02836]
[1766246909488,0.02489616,88217.0,88201.0,0.02836]
[1766246909698,0.02489616,88216.0,88201.0,0.02836]
[1766246909898,0.02489616,88215.0,88201.0,0.02836]
[1766246910087,0.00017005,88225.0,88202.0,0.0113426]
[1766246910088,0.0113401,88222.0,88202.0,0.0113426]
[1766246910599,0.0113399,88224.0,88204.0,0.0113423]
[1766246911097,0.0113399,88224.0,88210.0,0.22869063]
[1766246912095,0.08164857,88241.0,88214.0,0.22869063]
[1766246912298,0.011335,88262.0,88230.0,0.22869063]
[1766246912299,0.02836,88247.0,88230.0,0.22869063]
[1766246912495,0.02836,88247.0,88208.0,0.06107511]
[1766246912496,0.0113393,88229.0,88206.0,0.06107511]
[1766246912799,0.45738126,88240.0,88207.0,0.0284]
[1766246912800,0.0113397,88226.0,88207.0,0.0284]
[1766246913000,0.22869063,88230.0,88207.0,0.0284]
[1766246913001,0.24002973,88230.0,88207.0,0.0284]
[1766246913200,0.00017005,88225.0,88210.0,0.22869063]
[1766246916301,0.00017005,88225.0,88211.0,0.0284]
[1766246919206,0.00017005,88225.0,88208.0,0.00017005]
[1766246919406,0.00017005,88225.0,88210.0,0.22869063]
[1766246922608,0.00017005,88225.0,88210.0,0.22866791]
[1766246923506,0.00017005,88225.0,88209.0,0.02032]
[1766246923706,0.00017005,88225.0,88210.0,0.22866791]
[1766246926808,0.00017005,88225.0,88211.0,0.02836]
[1766246930911,0.02836,88230.0,88211.0,0.02836]
[1766246931206,0.02455294,88229.0,88211.0,0.02836]
[1766246931397,0.02455294,88228.0,88211.0,0.02836]
[1766246931601,0.0113392,88229.0,88211.0,0.02836]
[1766246931801,0.02432368,88228.0,88211.0,0.02836]
[1766246932005,0.0113395,88227.0,88211.0,0.02836]
[1766246932206,0.00017005,88229.0,88211.0,0.02836]
[1766246932405,0.02432368,88228.0,88211.0,0.02836]
[1766246932608,0.00017005,88229.0,88211.0,0.02836]
[1766246932910,0.02432463,88228.0,88211.0,0.02836]
[1766246933108,0.02432463,88227.0,88211.0,0.02836]
[1766246933303,0.00017005,88229.0,88211.0,0.02836]
[1766246933512,0.02432578,88228.0,88211.0,0.02836]
[1766246933708,0.02432578,88227.0,88211.0,0.02836]
[1766246934010,0.00017005,88229.0,88211.0,0.02836]
[1766246934212,0.02432578,88228.0,88211.0,0.02836]
[1766246934415,0.02432578,88227.0,88211.0,0.02836]
[1766246934711,0.00017005,88229.0,88211.0,0.02836]
[1766246934907,0.02432711,88228.0,88211.0,0.02836]
[1766246935102,0.02432711,88227.0,88211.0,0.02836]
[1766246935304,0.0113394,88228.0,88211.0,0.02836]
[1766246935610,0.02432854,88227.0,88211.0,0.02836]
[1766246935810,0.0113394,88228.0,88211.0,0.02836]
[1766246936011,0.02432854,88227.0,88211.0,0.02836]
[1766246936312,0.0113394,88228.0,88211.0,0.02836]
[1766246936511,0.02433018,88227.0,88211.0,0.02836]
[1766246936711,0.0113397,88225.0,88211.0,0.02836]
[1766246938907,0.01150935,88229.0,88211.0,0.02836]
[1766246939104,0.02433463,88228.0,88211.0,0.02836]
[1766246939304,0.02433463,88227.0,88211.0,0.02836]
[1766246939508,0.02433463,88226.0,88211.0,0.02836]
[1766246939710,0.01150935,88229.0,88211.0,0.02836]
[1766246939908,0.02433736,88228.0,88211.0,0.02836]
[1766246940110,0.02433736,88227.0,88211.0,0.02836]
[1766246940411,0.02433736,88226.0,88211.0,0.02836]
[1766246940603,0.01150935,88229.0,88211.0,0.02836]
[1766246940809,0.02434028,88228.0,88211.0,0.02836]
[1766246941010,0.02434028,88227.0,88211.0,0.02836]
[1766246941216,0.01150935,88229.0,88211.0,0.02836]
[1766246941217,0.02434028,88226.0,88211.0,0.02836]
[1766246941419,0.02434028,88225.0,88211.0,0.02836]
[1766246941613,0.00434028,88224.0,88211.0,0.02836]
[1766246941814,0.00017005,88229.0,88211.0,0.02836]
[1766246946017,0.06117569,88238.0,88219.0,0.22866791]
[1766246946221,0.02836,88237.0,88219.0,0.22866791]
[1766246946424,0.02528,88236.0,88219.0,0.22866791]
[1766246947018,0.02545005,88236.0,88219.0,0.22883796]
[1766246952320,0.02836,88235.0,88219.0,0.22883796]
[1766246953725,0.0242604,88234.0,88219.0,0.22883796]
[1766246953927,0.0242604,88233.0,88219.0,0.22883796]
[1766246954117,0.0242604,88232.0,88219.0,0.22883796]
[1766246954413,0.0242604,88231.0,88219.0,0.22883796]
[1766246954609,0.0242604,88230.0,88219.0,0.22883796]
[1766246954819,0.0242604,88229.0,88219.0,0.22883796]
[1766246955025,0.0242604,88228.0,88219.0,0.22883796]
[1766246955228,0.0242604,88227.0,88219.0,0.22883796]
[1766246955536,0.02836,88235.0,88219.0,0.22883796]
[1766246958926,0.02836,88235.0,88220.0,0.25697603]
[1766246959429,0.02836,88235.0,88220.0,0.02836]
[1766246960528,0.02836,88237.0,88220.0,0.02836]
[1766246961234,0.02836,88237.0,88220.0,0.25697595]
[1766246961522,0.02852955,88237.0,88220.0,0.25697595]
[1766246961919,0.02852955,88237.0,88220.0,0.02836]
[1766246962322,0.02836,88241.0,88220.0,0.25697595]
[1766246966631,0.02836,88241.0,88220.0,0.02836]
[1766246966816,0.02836,88241.0,88220.0,0.25697595]
[1766246967430,0.02429316,88240.0,88220.0,0.25697595]
[1766246967629,0.02429316,88239.0,88220.0,0.25697595]
[1766246967824,0.02429316,88238.0,88220.0,0.25697595]
[1766246968026,0.02429316,88237.0,88220.0,0.25697595]
[1766246968222,0.02429316,88236.0,88220.0,0.26831625]
[1766246968422,0.02429316,88235.0,88220.0,0.26831625]
[1766246968629,0.02429316,88234.0,88220.0,0.26831625]
[1766246968829,0.02429316,88233.0,88220.0,0.26831625]
[1766246969030,0.02429316,88232.0,88220.0,0.26831625]
[1766246969229,0.02429316,88231.0,88220.0,0.26831625]
[1766246969429,0.02836,88241.0,88220.0,0.26831625]
[1766246969631,0.02429205,88240.0,88220.0,0.26831625]
[1766246969826,0.02429205,88239.0,88220.0,0.26831625]
[1766246970033,0.02429205,88238.0,88220.0,0.26831625]
[1766246970222,0.02429205,88237.0,88220.0,0.26831625]
[1766246970424,0.0113379,88239.0,88220.0,0.26831625]
[1766246976823,0.02836,88241.0,88220.0,0.26831625]
[1766246979033,0.0113378,88240.0,88220.0,0.26831625]
[1766246979233,0.02836,88240.0,88223.0,0.0113399]
[1766246979537,0.01495,88241.0,88223.0,0.0113399]
[1766246979726,0.01495,88241.0,88225.0,0.0113396]
[1766246979931,0.01495,88241.0,88226.0,0.02836]
[1766246982435,0.02418072,88240.0,88226.0,0.02836]
[1766246982633,0.02418072,88239.0,88226.0,0.02836]
[1766246982834,0.02418072,88238.0,88226.0,0.02836]
[1766246983031,0.02418072,88237.0,88226.0,0.02836]
[1766246983331,1.44624,88255.0,88237.0,0.0113381]
[1766246983539,0.02836,88257.0,88238.0,0.25697595]
[1766246983735,0.0081,88256.0,88238.0,0.02836]
[1766246985336,0.00492,88258.0,88238.0,0.02836]
[1766246985548,0.0162555,88258.0,88240.0,0.22861595]
[1766246985940,0.0162555,88258.0,88238.0,0.02836]
[1766246987240,0.00492,88258.0,88239.0,0.0113379]
[1766246988336,0.00492,88258.0,88240.0,0.22861595]
[1766246988639,0.00492,88258.0,88239.0,0.0113379]
[1766246990240,0.00492,88258.0,88240.0,0.22861595]
[1766246993138,0.0113356,88257.0,88240.0,0.22861595]
[1766246993938,0.0113356,88257.0,88238.0,0.02836]
[1766246994935,0.0113356,88257.0,88240.0,0.22849718]
[1766246996341,0.0113356,88257.0,88238.0,0.02836]
[1766246999245,0.0113356,88257.0,88240.0,0.22849718]
[1766246999738,0.00492,88258.0,88238.0,0.02836]
[1766247001345,0.0113362,88253.0,88238.0,0.02836]
[1766247001740,0.00492,88258.0,88238.0,0.02836]
[1766247002242,0.0113362,88253.0,88238.0,0.02836]
[1766247002558,0.00492,88258.0,88238.0,0.02836]
[1766247002746,0.01779,88260.0,88240.0,0.22849718]
[1766247003047,0.02836,88261.0,88241.0,0.0113376]
[1766247003249,0.02836,88260.0,88241.0,0.0113376]
[1766247004039,0.02836,88260.0,88244.0,0.0113372]
[1766247004241,0.02836,88260.0,88245.0,0.02836]
[1766247005539,0.0113354,88259.0,88245.0,0.02836]
[1766247005739,0.0113361,88253.0,88245.0,0.02836]
[1766247006049,0.0113361,88253.0,88244.0,0.02836]
[1766247006250,0.02836,88260.0,88243.0,0.0198]
[1766247008652,0.0113358,88256.0,88243.0,0.0198]
[1766247022871,0.0113358,88256.0,88240.0,0.22851039]
[1766247023072,0.0113358,88256.0,88242.0,0.02836]
[1766247024070,0.0113361,88253.0,88242.0,0.02836]
[1766247026573,0.02836,88260.0,88242.0,0.02836]
[1766247026574,0.0113357,88257.0,88242.0,0.02836]
[1766247027275,0.25687039,88260.0,88242.0,0.02836]
[1766247027773,0.0113357,88257.0,88242.0,0.02836]
[1766247035370,0.011336,88254.0,88242.0,0.02836]
[1766247036869,0.011336,88254.0,88243.0,0.02836]
[1766247037975,0.011336,88254.0,88240.0,0.22849752]
[1766247038181,0.011336,88254.0,88241.0,0.02836]
[1766247038581,0.0113366,88250.0,88241.0,0.02836]
[1766247038882,0.25685752,88260.0,88241.0,0.02836]
[1766247040175,0.0113361,88253.0,88241.0,0.02836]
[1766247040585,0.0113366,88250.0,88241.0,0.02836]
[1766247041979,0.0113369,88247.0,88242.0,0.02832]
[1766247042175,0.0113369,88247.0,88243.0,0.02836]
[1766247042377,0.0113369,88247.0,88243.0,0.02688]
[1766247042686,0.0113369,88247.0,88243.0,0.02836]
[1766247044087,0.0113365,88251.0,88243.0,0.02836]
[1766247045183,0.0113368,88248.0,88243.0,0.02836]
[1766247045384,0.0113368,88248.0,88242.0,0.02836]
[1766247046290,0.0113368,88248.0,88239.0,0.02836]
[1766247046885,0.25685752,88260.0,88239.0,0.02836]
[1766247047085,0.0113363,88252.0,88239.0,0.02836]
[1766247047284,0.0113363,88252.0,88240.0,0.22849752]
[1766247047690,0.0113363,88252.0,88239.0,0.02836]
[1766247048096,0.0113363,88252.0,88240.0,0.22849752]
[1766247048391,0.25685752,88260.0,88240.0,0.22849752]
[1766247048392,0.0113357,88256.0,88240.0,0.22849752]
[1766247048592,0.0113357,88256.0,88239.0,0.02836]
[1766247048794,0.0113357,88256.0,88240.0,0.22849752]
[1766247050394,0.0113361,88253.0,88240.0,0.22849752]
[1766247050589,0.0113361,88253.0,88239.0,0.02836]
[1766247052499,0.0113365,88250.0,88239.0,0.02836]
[1766247053597,0.0113365,88250.0,88237.0,0.00017005]
[1766247060703,0.25685752,88260.0,88237.0,0.00017005]
[1766247060704,0.0113369,88247.0,88237.0,0.00017005]
[1766247061398,0.0113359,88255.0,88237.0,0.22866757]
[1766247061602,0.0113349,88263.0,88245.0,0.22849752]
[1766247061898,0.0113349,88263.0,88250.0,0.22849752]
[1766247061899,0.02836,88262.0,88250.0,0.22849752]
[1766247062091,0.02836,88262.0,88240.0,0.22849752]
[1766247063198,0.0113351,88261.0,88240.0,0.22849752]
[1766247063699,0.0113351,88261.0,88241.0,0.02836]
[1766247065210,0.0113355,88258.0,88241.0,0.02836]
[1766247065615,0.22849752,88270.0,88241.0,0.02836]
[1766247065908,1.47424,88269.0,88241.0,0.02836]
[1766247066697,0.0113348,88264.0,88241.0,0.02836]
[1766247066902,0.02836,88263.0,88241.0,0.02836]
[1766247067205,0.0113351,88261.0,88241.0,0.02836]
[1766247069306,0.0113355,88258.0,88241.0,0.02836]
[1766247073614,0.0113359,88255.0,88241.0,0.02836]
[1766247074408,0.22847703,88260.0,88241.0,0.02836]
[1766247075408,0.0113366,88249.0,88237.0,0.00017005]
[1766247075624,0.0113366,88249.0,88238.0,0.02836]
[1766247075917,0.0113366,88249.0,88238.0,0.01555]
[1766247076316,0.0113366,88249.0,88239.0,0.22847703]
[1766247076611,0.0396962,88253.0,88239.0,0.22847703]
[1766247079821,0.02836,88253.0,88239.0,0.22847703]
[1766247081618,0.02836,88253.0,88238.0,0.01555]
[1766247084923,0.02836,88253.0,88239.0,0.02836]
[1766247085415,0.02433701,88252.0,88239.0,0.02836]
[1766247085614,0.02836,88253.0,88239.0,0.02836]
[1766247085820,0.02433701,88252.0,88239.0,0.02836]
[1766247086017,0.02836,88253.0,88239.0,0.02836]
[1766247086218,0.02433701,88252.0,88239.0,0.02836]
[1766247086421,0.02836,88253.0,88239.0,0.02836]
[1766247086615,0.02433747,88252.0,88239.0,0.02836]
[1766247086817,0.02836,88256.0,88240.0,0.22851505]
[1766247087125,0.02433718,88255.0,88239.0,0.02836]
[1766247087325,0.02433718,88254.0,88239.0,0.02836]
[1766247087620,0.02433718,88253.0,88239.0,0.02836]
[1766247087823,0.0396958,88256.0,88239.0,0.02836]
[1766247088024,0.02433767,88255.0,88239.0,0.02836]
[1766247088224,0.02433767,88254.0,88239.0,0.02836]
[1766247088524,0.02433767,88253.0,88239.0,0.02836]
[1766247088821,0.0396958,88256.0,88239.0,0.02836]
[1766247089026,0.02433835,88255.0,88239.0,0.02836]
[1766247089215,0.0396958,88256.0,88239.0,0.02836]
[1766247089216,0.02433835,88254.0,88239.0,0.02836]
[1766247089415,0.02433835,88253.0,88239.0,0.02836]
[1766247089611,0.02836,88256.0,88239.0,0.02836]
[1766247089813,0.02433906,88255.0,88239.0,0.02836]
[1766247090021,0.01127906,88254.0,88239.0,0.02836]
[1766247090218,0.02836,88259.0,88239.0,0.02836]
[1766247091031,0.02836,88259.0,88240.0,0.22851505]
[1766247092735,0.0113355,88258.0,88240.0,0.22851505]
[1766247093031,0.0113355,88258.0,88239.0,0.02836]
[1766247095426,0.0113359,88255.0,88239.0,0.02836]
[1766247095627,0.0113362,88252.0,88239.0,0.02836]
[1766247095828,0.0113362,88252.0,88240.0,0.02836]
[1766247100345,0.0113358,88256.0,88240.0,0.02836]
[1766247102146,0.02423659,88255.0,88240.0,0.02836]
[1766247102346,0.02423659,88254.0,88240.0,0.02836]
[1766247102543,0.02423659,88253.0,88240.0,0.02836]
[1766247102742,0.02423659,88252.0,88240.0,0.02836]
[1766247103040,0.0113358,88256.0,88240.0,0.02836]
[1766247103242,0.02423686,88255.0,88240.0,0.02836]
[1766247103442,0.02423686,88254.0,88240.0,0.02836]
[1766247103643,0.02423686,88253.0,88240.0,0.02836]
[1766247103941,0.02423686,88252.0,88240.0,0.02836]
[1766247104143,0.0113358,88256.0,88240.0,0.02836]
[1766247104342,0.02423699,88255.0,88240.0,0.02836]
[1766247104545,0.02423699,88254.0,88240.0,0.02836]
[1766247104847,0.02423699,88253.0,88240.0,0.02836]
[1766247105037,0.0113358,88256.0,88240.0,0.02836]
[1766247105239,0.02423712,88255.0,88240.0,0.02836]
[1766247105446,0.02423712,88254.0,88240.0,0.02836]
[1766247105748,0.02423712,88253.0,88240.0,0.02836]
[1766247106048,0.0113358,88256.0,88240.0,0.02836]
[1766247106348,0.02423717,88255.0,88240.0,0.02836]
[1766247106542,0.02423717,88254.0,88240.0,0.02836]
[1766247106744,0.02423717,88253.0,88240.0,0.02836]
[1766247107042,0.0113358,88256.0,88240.0,0.02836]
[1766247107043,0.02423717,88252.0,88240.0,0.02836]
[1766247107342,0.0113358,88256.0,88240.0,0.02836]
[1766247107544,0.02423784,88255.0,88240.0,0.02836]
[1766247107743,0.02423784,88254.0,88240.0,0.02836]
[1766247107943,0.02423784,88253.0,88240.0,0.02836]
[1766247108145,0.02423784,88252.0,88240.0,0.02836]
[1766247108335,0.0113358,88256.0,88240.0,0.02836]
[1766247108540,0.02423804,88255.0,88240.0,0.02836]